Cogmind - Beta 15 @@@ ROGUE MODE // 2025.09.02 @ 16:38:08 Player: shapeshifter Result: Destroyed by UF-HMA(R) with Subdweller Laser Performance ------------- Evolutions (0) 0 Regions Visited (3) 600 Robots Destroyed (19) 95 Value Destroyed (513) 513 Prototype IDs (11) 220 Alien Tech Used (0) 0 Bonus (0) 0 TOTAL SCORE: 1428 Bonus ------- None Cogmind --------- Core Integrity 0/250 Matter 271/300 Energy 125/125 System Corruption 0% Temperature Cool (6) Movement Core (500) Ox9 Location -10/Subcaves Parts ------- > --- POWER (1) -------- Light Ion Engine > --- PROPULSION (2) --- Light Treads > --- UTILITY (2) ------ Scrap Shield > --- WEAPON (2) ------- Subdweller Machine Gun Barrage Gun > --- INVENTORY (5) ---- High-capacity Storage Unit Makeshift Light Armor Plating Rocket Launcher Peak State ------------ > --- POWER ------------ Light Ion Engine Subdweller Power Source > --- PROPULSION ------- Light Treads Wheel Subdweller Monowheel > --- UTILITY ---------- Tower Shield > --- WEAPON ----------- Subdweller Beam Cannon Subdweller Machine Gun Barrage Gun Enhanced Flamer > --- INVENTORY -------- High-capacity Storage Unit Makeshift Light Armor Plating Scrap Shield Rocket Launcher [Rating: 38] Favorites ----------- Power Light Ion Engine Engine Light Ion Engine Propulsion Light Treads Treads Light Treads Wheel Subdweller Monowheel Utility Seismic Detector Device Seismic Detector Storage Small Storage Unit Protection Tower Shield Weapon Assault Rifle Energy Gun Riot Gun Energy Cannon Subdweller Beam Cannon Ballistic Gun Assault Rifle Special Weapon Enhanced Flamer Build | -11 -10 -10 -10 ------- Run | Yrd Mat Min Sub Slots Evolved . | . . . . Power . | . . . . Propulsion . | . . . . Utility . | . . . . Weapon . | . . . . Parts Attached 25 | 7 . . 18 Power 3 | 1 . . 2 Engine 3 | 1 . . 2 Core . | . . . . Reactor . | . . . . Propulsion 6 | 2 . . 4 Treads 2 | 2 . . . Leg . | . . . . Wheel 4 | . . . 4 Hover . | . . . . Flight . | . . . . Utility 6 | 2 . . 4 Device 1 | 1 . . . Storage 2 | 1 . . 1 Processor . | . . . . Hackware . | . . . . Protection 3 | . . . 3 Artifact . | . . . . Weapon 10 | 2 . . 8 Energy Gun 1 | . . . 1 Energy Cannon 1 | . . . 1 Ballistic Gun 7 | 2 . . 5 Ballistic Cannon . | . . . . Launcher . | . . . . Special Weapon 1 | . . . 1 Impact Weapon . | . . . . Slashing Weapon . | . . . . Piercing Weapon . | . . . . Special Melee Weapon . | . . . . Unidentified Prototypes . | . . . . Parts Lost 10 | . . . 10 Power 1 | . . . 1 Propulsion 4 | . . . 4 Utility 1 | . . . 1 Weapon 4 | . . . 4 Highest Loss Streak 7 | . . . 7 To Critical Strikes . | . . . . Average Backups 6 | 3 5 7 7 Power . | . 1 1 . Propulsion 1 | 1 2 2 . Utility 3 | . 1 2 4 Weapon 1 | . 1 2 1 Tool/Special . | . . . . Unused Backups 9 | . . . 9 Power 1 | . . . 1 Propulsion . | . . . . Utility 6 | . . . 6 Weapon 2 | . . . 2 Tool/Special . | . . . . Average Slot Usage (%) 81 | . 100 100 75 Engine 13 | . 14 14 13 Treads 14 | . 28 28 9 Wheel 6 | . . . 8 Device 7 | . 14 14 5 Storage 7 | . 14 14 5 Protection 3 | . . . 4 Energy Cannon 2 | . . . 3 Ballistic Gun 19 | . 28 28 17 Special Weapon 3 | . . . 4 Peak Build Rating 38 | 7 7 8 38 Average Rating 19 | 5 7 7 24 On Entrance 5 | . 7 7 8 Naked Turns . | . . . . Heaviest Build 64 | 15 15 15 64 Greatest Support 40 | 40 40 40 40 Greatest Overweight (x) 6 | . . . 6 Average Overweight (x) 2 | . . . 2 Largest Inventory Capacity 20 | 8 8 8 20 Average Capacity 9 | 7 8 8 10 Most Carried 18 | 6 6 8 18 Average Carried 7 | 3 5 7 8 Final Capacity 8 | 8 8 8 5 Final Carried 8 | 5 6 8 3 Class Distribution -------------------- 60% | Mutant 35% | Derelict-Gunner 3% | Gunner Dominant Class ---------------- Mutant | -10/Materials Mutant | -10/Mines Derelict-Gunner | -10/Subcaves Resources | -11 -10 -10 -10 ----------- Run | Yrd Mat Min Sub Matter Collected 804 | 306 54 . 444 Remotely . | . . . . Salvage Created 806 | 93 98 . 615 Parts 54 | 5 8 . 41 Haulers Intercepted . | . . . . Recyclers Shooed 1 | 1 . . . Parts Field Recycled . | . . . . Retrieved Matter . | . . . . Parts Self-Destructed 17 | . . . 17 Prevented . | . . . . Kills | -11 -10 -10 -10 ------- Run | Yrd Mat Min Sub Combat Hostiles Destroyed 16 | . 2 . 14 Guns 14 | . 2 . 12 Cannons 2 | . . . 2 Classes Destroyed 7 | 2 2 . 3 Tunneler 1 | 1 . . . Recycler 1 | 1 . . . Watcher 1 | . 1 . . Swarmer 5 | . . . 5 Grunt 4 | . 2 . 2 Sentry 1 | . . . 1 Subdweller 6 | . . . 6 Best Kill Streak 4 | 2 3 . 4 Combat Bots Only 4 | . 2 . 4 Max Kills in Single Turn 2 | 1 1 . 2 Gunslinging 1 | . . . 1 Exploded . | . . . . Melee . | . . . . Uniques/NPCs Destroyed . | . . . . Combat | -11 -10 -10 -10 -------- Run | Yrd Mat Min Sub Hostile Shots Fired 139 | . 14 . 125 Missed 36 | . 4 . 32 Hits 103 | . 10 . 93 Projectile 103 | . 10 . 93 Critical Strikes 1 | . . . 1 Damage Taken 1554 | . 141 . 1413 Core 256 | . 11 . 245 Absorbed by Shields . | . . . . Core Remaining (%) 100 | 100 . . . Volleys Fired 79 | 6 11 . 62 Largest 4 | 2 2 . 4 Hottest 220 | 40 40 . 220 Shots Fired 154 | 12 22 . 120 Gun 146 | 12 22 . 112 Cannon 5 | . . . 5 Launcher . | . . . . Special 3 | . . . 3 Kinetic 144 | 12 22 . 110 Thermal 8 | . . . 8 Explosive . | . . . . Electromagnetic 2 | . . . 2 Robot Hit Streak 22 | 3 4 . 22 Robot Miss Streak 3 | 2 2 . 3 Penetration Max . | . . . . Secondary Targets 3 | . 1 . 2 Max Gunslinging Chain 1 | . 1 . 1 Shots Hit Robots 115 | 7 13 . 95 Core Hits 41 | 3 7 . 31 Critical Kills . | . . . . Critical Parts Destroyed 1 | . . . 1 Critical Strikes 3 | . . . 3 Destroy 3 | . . . 3 Melee Attacks . | . . . . Impact . | . . . . Slashing . | . . . . Piercing . | . . . . Sneak Attacks . | . . . . Combat Hostiles . | . . . . Follow-up Attacks . | . . . . Damage Inflicted 1831 | 83 158 . 1590 Guns 1696 | 83 158 . 1455 Cannons 114 | . . . 114 Explosions . | . . . . Melee . | . . . . Ramming . | . . . . Kinetic 1650 | 83 158 . 1409 Thermal 135 | . . . 135 Explosive . | . . . . Electromagnetic 46 | . . . 46 Impact . | . . . . Slashing . | . . . . Piercing . | . . . . Highest Corruption . | . . . . Average Corruption . | . . . . Corruption Purged . | . . . . Corruption Blocked . | . . . . Overload Shots . | . . . . Overflow Damage . | . . . . Projectiles . | . . . . Explosions . | . . . . Melee . | . . . . Knockbacks . | . . . . Impact . | . . . . Kinetic . | . . . . Secondary . | . . . . Self-Inflicted Damage . | . . . . Shots . | . . . . Rammed . | . . . . Targets Rammed . | . . . . Kicked . | . . . . Crushed . | . . . . Highest Temperature 193 | . 2 . 193 Average Temperature 58 | . 1 . 73 Received Heat Transfer 297 | . 78 . 219 Siege Activations . | . . . . Martial Activations . | . . . . Shielding Activations . | . . . . Robots Disrupted . | . . . . Combat Hostiles . | . . . . Robots Corrupted . | . . . . Combat Hostiles . | . . . . Parts Fried . | . . . . Impact Corruptions . | . . . . Robots Melted . | . . . . Combat Hostiles . | . . . . Parts Melted . | . . . . Heat Transferred 308 | . . . 308 Parts Sabotaged . | . . . . Parts Stolen . | . . . . Parts Stripped . | . . . . Power Chain Reactions . | . . . . Alert | -11 -10 -10 -10 ------- Run | Yrd Mat Min Sub Maximum Alert Level . | . . . . Low Security (%) 100 | 100 100 100 . Level 1 . | . . . . Level 2 . | . . . . Level 3 . | . . . . Level 4 . | . . . . Level 5 . | . . . . High Security . | . . . . Max Security . | . . . . Peak Influence 40 | 5 40 . . Initial . | . . . . Average 4 | . 12 . . Influence Increases 312 | 10 72 . 230 Destroy 0b10 Robot/C 200 | . 40 . 160 Destroy 0b10 Robot/NC 15 | 10 5 . . Destroy Leader 22 | . 12 . 10 Partial Spotted 15 | . 15 . . Lose Combat Pursuer 60 | . . . 60 Influence Decreases 312 | 10 72 . 230 Time Decay 242 | 10 72 . 160 Lost Part 70 | . . . 70 Squads Dispatched . | . . . . Investigation . | . . . . Extermination . | . . . . Reinforcement . | . . . . Assault . | . . . . Garrison . | . . . . Intercept . | . . . . Searches Triggered . | . . . . Construction Impeded . | . . . . Haulers Reinforced . | . . . . Active Scanning Responses . | . . . . Cargo Convoy Interrupts . | . . . . Stealth | -11 -10 -10 -10 --------- Run | Yrd Mat Min Sub Distress Signals 1 | . 1 . . Communications Jammed . | . . . . Distress Signals . | . . . . Times Spotted 21 | . 4 . 17 Peak Tracking Total 4 | . 3 . 4 Tactical Retreats 1 | . . . 1 Traps | -11 -10 -10 -10 ------- Run | Yrd Mat Min Sub Traps Triggered . | . . . . Indirectly . | . . . . Trap Hack Attempts . | . . . . Triggered . | . . . . Disarmed . | . . . . Reprogrammed . | . . . . Reused . | . . . . Traps Extracted . | . . . . Installed . | . . . . Triggered . | . . . . Machines | -11 -10 -10 -10 ---------- Run | Yrd Mat Min Sub Machines Disabled 1 | . . . 1 Max in Single Turn 1 | . . . 1 Machines Repaired . | . . . . Machines Dismantled . | . . . . Machines Sabotaged . | . . . . Overloaded Fab Kills . | . . . . Hacking | -11 -10 -10 -10 --------- Run | Yrd Mat Min Sub Machines Accessed 3 | . 2 . 1 Terminals 2 | . 2 . . Fabricators . | . . . . Repair Stations . | . . . . Recycling Units . | . . . . Scanalyzers . | . . . . Garrison Access . | . . . . Total Hacks 5 | . 4 . 1 Successful 2 | . 1 . 1 Failed 3 | . 3 . . Catastrophic . | . . . . Database Lockouts . | . . . . Manual 4 | . 4 . . Terminals 4 | . 4 . . Fabricators . | . . . . Repair Stations . | . . . . Recycling Units . | . . . . Scanalyzers . | . . . . Garrison Access . | . . . . Terminal Hacks 1 | . . . 1 Proto ID Catalog 1 | . . . 1 Fabricator Hacks . | . . . . Repair Station Hacks . | . . . . Recycling Unit Hacks . | . . . . Scanalyzer . | . . . . Garrison Access Hacks . | . . . . Unauthorized Hacks 1 | . 1 . . Terminals 1 | . 1 . . Skim 1 | . 1 . . Fabricators . | . . . . Repair Stations . | . . . . Recycling Units . | . . . . Scanalyzers . | . . . . Garrison Access . | . . . . Data Cores Recovered . | . . . . Used . | . . . . Hacking Detections 2 | . 2 . . Full Trace Events . | . . . . Feedback Events . | . . . . Feedback Blocked . | . . . . Robot Schematics Acquired . | . . . . Robots Built . | . . . . Authchips . | . . . . Time . | . . . . Total Robot Build Rating . | . . . . Part Schematics Acquired . | . . . . Parts Built . | . . . . Authchips . | . . . . Time . | . . . . Total Part Build Rating . | . . . . Parts Repaired . | . . . . Time . | . . . . Parts Recycled . | . . . . Recycled Matter . | . . . . Retrieved Matter . | . . . . Retrieved Components . | . . . . Parts Scanalyzed . | . . . . Part Schematics Acquired . | . . . . Parts Damaged . | . . . . Bothacking | -11 -10 -10 -10 ------------ Run | Yrd Mat Min Sub Used RIF Installer . | . . . . Robots Hacked . | . . . . Non-combat . | . . . . Combat . | . . . . Robot Hacks Applied . | . . . . Relay Couplers Released . | . . . . Fabnet Peak Effective % . | . . . . Robots Rewired . | . . . . Allies Hacked . | . . . . Hacks Repelled . | . . . . Allies | -11 -10 -10 -10 -------- Run | Yrd Mat Min Sub Total Allies . | . . . . Largest Group . | . . . . Highest-Rated Group . | . . . . Highest-Rated Ally . | . . . . Total Orders . | . . . . Ally Attacks . | . . . . Total Damage . | . . . . Kills . | . . . . Allies Corrupted . | . . . . Allies Melted . | . . . . Intel | -11 -10 -10 -10 ------- Run | Yrd Mat Min Sub Active Infowar (turns) 1151 | 35 205 279 632 Seismic 1151 | 35 205 279 632 Robot Analysis Total . | . . . . Derelict Logs Recovered 3 | . . 1 2 Drone Launches . | . . . . Drone Recoveries . | . . . . Exploration | -11 -10 -10 -10 ------------- Run | Yrd Mat Min Sub Turns Passed 2202 | 120 205 279 1598 Spaces Moved 1284 | 62 101 171 950 Core 14 | 14 . . . Treads 453 | 48 101 171 133 Legs . | . . . . Wheels 817 | . . . 817 Hover . | . . . . Flight . | . . . . Fastest Speed 50 | 50 160 160 80 Average Speed 146 | 135 160 160 143 Slowest Speed 400 | 160 160 160 400 Overloaded Moves . | . . . . Propulsion Burnouts . | . . . . Robots Hopped . | . . . . Potential Cave-ins . | . . . . Cave-ins Triggered . | . . . . Exploration Rate (%) 31 | 4 21 46 54 Regions Visited 3 Branch Regions 2 Pre-discovered Areas 2 | . . . 2 Known Exits Taken . | . . . . Unknown Exits Taken 3 | 1 1 1 . Scrap Searched 12 | . . . 12 Spaces Dug . | . . . . Terrain Destroyed . | . . . . Melee . | . . . . Projectile . | . . . . AOE . | . . . . Terrain Rammed . | . . . . Walls Destroyed . | . . . . Machines Disabled . | . . . . Actions | -11 -10 -10 -10 --------- Run | Yrd Mat Min Sub Total 1460 | 86 123 177 1074 Wait 35 | . 11 5 19 Move 1281 | 61 100 170 950 Hop . | . . . . Pick Up 30 | 12 1 2 15 Fast Attach 6 | . . . 6 Attach 17 | 7 . . 10 Detach . | . . . . Swap 4 | . . . 4 Drop 8 | . . . 8 Fire 79 | 6 11 . 62 Melee . | . . . . Ram . | . . . . Kick . | . . . . Crush . | . . . . Escape Stasis . | . . . . Rewire . | . . . . Trap . | . . . . Miscellaneous . | . . . . Route ------- -11/Scrapyard -10/Materials -10/Mines (discovered 3 exits: [*Mat x2] / *Sub) -10/Subcaves (discovered 1 exit: [*Mat]) History --------- Turn | Location | Event 8 | -11/Scrapyard | Discovered new exit (range 14) 121 | -11/Scrapyard | Entered Materials 286 | -10/Materials | Discovered new exit (range 12) 312 | -10/Materials | Build established: Mutant 326 | -10/Materials | Entered Mines 326 | -10/Mines | Discovered new exit (range 14) 338 | -10/Mines | Received a Rocket Launcher from a helpful Derelict 387 | -10/Mines | Learned 2 Materials zone layouts 388 | -10/Mines | Discovered new exit (range 5) 524 | -10/Mines | A weapon hastily lodged in a ceiling crevice suddenly fell to the ground 593 | -10/Mines | Discovered new exit (range 9) 605 | -10/Mines | Entered Subcaves 606 | -10/Subcaves | Approached by a straggling Scientist 622 | -10/Subcaves | Shifting Twisted Machinery released Riot Gun 961 | -10/Subcaves | A swath of the cavern ceiling suddenly collapsed 1020 | -10/Subcaves | Core integrity fell below 50% 1072 | -10/Subcaves | Lost 7 parts (1p2n4w) 1168 | -10/Subcaves | Discovered new exit (range 15) 1255 | -10/Subcaves | Visited 4L-MR0's lab 1282 | -10/Subcaves | Found Tower Shield 1284 | -10/Subcaves | Attached Tower Shield, gained temporary slots: Power, Propulsion x2, Utility x2, Weapon x2 1405 | -10/Subcaves | Disturbed a concealed Subdweller 1683 | -10/Subcaves | Disturbed a concealed Subdweller 1714 | -10/Subcaves | Build established: Derelict-Gunner 2005 | -10/Subcaves | Disturbed a concealed Subdweller 2179 | -10/Subcaves | Core integrity fell below 20% 2203 | -10/Subcaves | Destroyed by UF-HMA(R) with Subdweller Laser Last Messages --------------- here" 02042_ Subatomizers dissect the Flamer. 02046_ Searching scrap... 02046_ Found Flamer. 02046_ Found 46 Matter. 02048_ Searching scrap... 02048_ Found Shrapnel Trap. 02048_ Found Flamer. 02048_ Found 54 Matter. V3-NFM(c): "I think it's somewhere northeast of here" 02179_ Z7-BIO(u) cries out in pain. 02179_ Z7-BIO(u) destroyed. 02179_ Acquired 6 matter. 02192_ UF-HMA(R): "OHNO!" 02197_ Tower Shield destroyed. 02197_ Temporary Power slot lost. 02197_ Temporary Propulsion slot lost. 02197_ Temporary Utility slot lost. 02197_ Temporary Weapon slot lost. Map ----- +----------------------------------------------------+ | ##?????# #### #?????# ????????## | | ##?#### #?????# ???????????? | | ### ##?????????????????? | | # #?????????????????? | | ## ### #?????????????????? | | #### ##?######## ###???????????????? | | #??# ##????????## #???????????????? | | #??# #####????## #???????????????? | | ##?# ##???# ##????????????????? | | ### #???# ####?????????????????? | | ## #???# ###??????????????????? | | ##???# ##?????????????????? | | #??# ## ###??????????????????? | | #??## #?# #??????????????????? | | ##???##??# ##??????????????????? | | ##### ##???# ???# ###???????????????????? | | ####???# #???## ??# ###???????????????????? | | ??????? #??# #?##### ##??????????????????? | | ??????? #??# ##??## ##?????????????????? | | ??????? ??# ### ###?? #?? ##?????? | | ??????? ##?# #? ## ##???? | | ??????? ## #?## ## ## ??? | | ??????? ??# #?# "" ## ## ?????? | | ??????? ??? ###?# "" #???????????? | | ??????? ??? #???## ""## = #???????????? | | ???????# ????#??????#??##@| ##??????????? | | ???????? ????????###??###RR ##?????????? | | ???????? ???# "#"#"" ## %=R #????? | | ????????????# "" ## ????? | | ????????????? "" #?# ?????? | | ??????????????#""# # #??## ????? | | ?????????????????## #???? ## ?????? | | ??????????????"" " "" #?????##??###?????? | | ?????????????"" " ## "" #?????????????????? | | ??????????????# ######?#### ##?????????????????? | | ??????????????###??????????####??????????????????? | | ?????????????????????????????????????????????????? | | ?????????????????????????????????????????????????? | | ?????????????????????????????????????????????????? | | ?????????????????????????????????????????????????? | | ?????????????????????????????????????????????????? | | ?????????????????????????????????????????????????? | | ?????????????????????????????????????????????????? | | ?????????????????????????????????????????????????? | | ?????????????????????????????????????????????????? | | ?????????????????????????????????????????????????? | | ?????????????????????????????????????????????????? | | ?????????????????????????????????????????????????? | | ?????????????????????????????????????????????????? | | ?????????????????????????????????????????????????? | +----------------------------------------------------+ Best States ------------- Heat Dissipation 25 Energy Generation 20 Energy Capacity 250 Matter Stores 300 Matter Capacity 300 Sight Range 16 Terrain Scan Density 10 Armor Coverage 2000 Evasion (%) 50 Recoil Reduction 2 Item Schematics ----------------- None Robot Schematics ------------------ None Fabricated ------------ Nothing Repaired ---------- Nothing Alien Tech Used ----------------- None Achievements -------------- None Challenges ------------ None Game ------ Seed CoilMultinovaThrower Manual? 0 Play Time 00:11:35 Cumulative 252.3 hours Start 2025.09.02 @ 16:24:47 End 2025.09.02 @ 16:38:08 Sessions 1 Manual Loads 0 Difficulty Rogue Special Mode None Game No. 369 Rogue 369 Adventurer 0 Explorer 0 Win Type - Total 5 Types 4/0/1/0/0/0/0/0/0/0 Lore% 83 Gallery% 79 Achievement% 61 Wizard Run 0 Options --------- Layout 1 ASCII 0 Keyboard 0 Movement Mouse Keybinds 0 Fullscreen 1 Font 24/Smallcaps Map View 50x40 Zoom Use 0% Tactical HUD 1 Map Filters NONE Filters NONE Steam 1 RUN: 641bb157-56ea-43f2-8525-688876d556ef